[Event "GER-chT Youth Countries 2018"]
[Site "Wurzburg"]
[Date "2018.10.06"]
[Round "6"]
[White "Hommer, Jeremy"]
[Black "Basovskiy, Jana"]
[Result "1-0"]
[ECO "A45"]
[WhiteElo "1983"]
[BlackElo "1772"]
[Annotator "NA RC"]
[PlyCount "117"]
[EventDate "2018.10.03"]
[EventType "team-tourn"]
[EventCountry "GER"]
[SourceTitle "playchess.com"]
[Source "ChessBase"]
[SourceQuality "1"]
[TimeControl "40/5400+30:1800+30"]

{[%evp 21,102,-9,-3,-48,-25,-52,-53,-52,-32,-41,-34,-58,-41,-31,-30,-85,-83,-87,-79,-87,6,0,11,7,97,0,-7,-25,-11,-29,-30,-71,-61,-54,89,51,63,63,62,60,62,53,95,68,66,64,148,32767,157,95,104,106,96,32767,32767,32767,32767,32767,112,117,116,120,146,139,154,176,280,174,189,196,222,236,208,218,295,262,253,262,291,308,322,350,396]} 1. d4 {[%emt 0:00:00]} Nf6 {[%emt 0:00:00]} 2. Bf4 {[%emt 0:00:00]} e6 {[%emt 0:00:00]} 3. e3 {[%emt 0:00:00]} d5 {[%emt 0:00:00]} 4. Nd2 {[%emt 0:00:01]} c5 {[%emt 0:00:09]} 5. c3 {[%emt 0:00:13]} Nc6 {[%emt 0:00:07]} 6. Ngf3 {[%emt 0:00:15]} Bd6 {[%emt 0:00:32]} 7. Bg3 {[%emt 0:00:18]} O-O {[%emt 0:00:15]} 8. Bd3 {[%emt 0:00:12]} b6 {[%emt 0:00:23]} 9. O-O {[%emt 0:01:10] D02: 1 d4 d5 2 Nf3 sidelines, including 2...Nf6 3 g3 and 2...Nf6 3 Bf4} (9. e4 Be7 10. e5 Nh5 11. Nf1 cxd4 12. Nxd4 Nxd4 13. cxd4 g6 14. Ne3 f5 15. exf6 Bxf6 16. Be2 Nxg3 17. hxg3 {½-½ (37) Nakamura,H (2787)-Svidler,P (2760) Moscow 2018}) 9... Bb7 {[%emt 0:01:12]} 10. Ne5 {[%emt 0:00:59]} Rc8 {[%emt 0:00:49]} 11. f4 {[%emt 0:01:51]} Ne7 {[%emt 0:00:36] LiveBook: 9 Games} 12. Bf2 {[%emt 0:00:42]} Ne4 $146 {[%emt 0:17:23]} ({Predecessor:} 12... Qc7 13. Bh4 Ne4 14. Bxe7 Qxe7 15. Rf3 f6 16. Ng4 f5 17. Ne5 Bxe5 18. fxe5 Qg5 19. Qe2 cxd4 20. cxd4 Rc7 21. Nb3 Rfc8 22. Raf1 {½-½ (22) Nedomansky,L (2070)-Skula,E (2235) Czech Republic 1996}) 13. Qe2 {[%emt 0:13:06]} f6 {[%emt 0:23:35]} 14. Nef3 {[%emt 0:02:35]} Bb8 {[%emt 0:06:43]} 15. Rad1 {[%emt 0:01:34]} Qe8 {[%emt 0:07:14]} 16. Bb1 {[%emt 0:05:21]} Nf5 {[%emt 0:03:21]} 17. Nxe4 {[%emt 0:09:15]} dxe4 {[%emt 0:00:33]} 18. Nh4 {[%emt 0:00:42]} cxd4 {[%emt 0:05:54]} 19. exd4 {[%emt 0:05:04]} Nd6 {[%emt 0:12:23]} ({Don't play} 19... Bxf4 $6 20. Bxe4 Bxe4 21. Qxe4 $11) 20. Be3 {[%emt 0:05:41]} Qb5 {[%emt 0:03:34]} (20... f5 $17 21. g3 Bd5) 21. Qxb5 {[%emt 0:01:08]} Nxb5 {[%emt 0:00:00]} 22. f5 {[%emt 0:01:21]} Kf7 {[%emt 0:04:00]} (22... exf5 $11 23. Nxf5 Kh8) 23. a4 {[%emt 0:02:18]} (23. fxe6+ $16 Kxe6 24. Nf5) 23... Nd6 $1 {[%emt 0:01:07]} 24. g4 {[%emt 0:03:43]} Bd5 {[%emt 0:06:31]} 25. fxe6+ {[%emt 0:00:52]} Bxe6 {[%emt 0:02:10]} 26. Nf5 {[%emt 0:01:10]} Nc4 {[%emt 0:01:57]} 27. Bc1 {[%emt 0:01:35]} Bxf5 {[%emt 0:01:05]} (27... g6 $15 {keeps the upper hand.} 28. Nh6+ Kg7 29. Bxe4 Nxb2 30. Bxb2 Kxh6) 28. gxf5 {[%emt 0:00:51]} Rfe8 {[%emt 0:00:42]} 29. Rde1 {[%emt 0:02:07]} e3 {[%emt 0:01:14]} 30. Ba2 {[%emt 0:00:41]} Kf8 $1 {[%emt 0:00:10]} 31. Re2 {[%emt 0:06:34]} Re4 {[%emt 0:00:54]} 32. Kg2 {[%emt 0:05:12]} Rh4 {[%emt 0:00:47]} 33. h3 {[%emt 0:01:11]} Re4 {[%emt 0:00:23]} ({Better is} 33... Nd2 $14) 34. Rf3 {[%emt 0:00:59]} Ree8 {[%emt 0:00:45]} 35. Kf1 {[%emt 0:05:13]} Re4 {[%emt 0:00:25]} 36. Bxe3 {[%emt 0:01:45]} Nxe3+ {[%emt 0:00:01]} 37. Rexe3 {[%emt 0:00:28]} Rxe3 {[%emt 0:00:03]} 38. Rxe3 {[%emt 0:00:13]} Re8 {[%emt 0:00:02]} 39. Be6 {[%emt 0:00:33]} g6 {[%emt 0:01:07]} 40. Kf2 {[%emt 0:02:25]} Bf4 {[%emt 0:01:07]} 41. Re2 {[%emt 0:30:41]} Kg7 {[%emt 0:07:21]} 42. Kf3 {[%emt 0:00:00]} Bd6 {[%emt 0:04:15]} 43. Ke4 {[%emt 0:00:00]} Bf8 {[%emt 0:06:55]} (43... h5 $142 44. Rc2 g5) 44. Kd3 {[%emt 0:00:00]} Kh6 {[%emt 0:01:36]} 45. Rg2 {[%emt 0:00:00]} Re7 {[%emt 0:03:47]} 46. Kc4 {[%emt 0:00:00]} Rc7+ {[%emt 0:01:08] [#]} 47. Kb5 $1 {[%emt 0:00:00]} Bd6 {[%emt 0:01:14]} 48. fxg6 hxg6 49. c4 {[%emt 0:00:00]} Re7 {[%emt 0:04:00]} 50. Re2 {[%emt 0:00:00]} Rc7 {[%emt 0:00:52]} 51. b4 {[%emt 0:00:00]} Kg7 $18 {[%emt 0:01:30]} 52. a5 {[%emt 0:00:00]} Re7 {[%emt 0:01:43]} 53. c5 {[%emt 0:00:00]} bxc5 {[%emt 0:00:40]} 54. bxc5 {[%emt 0:00:00]} Bf4 {[%emt 0:00:40]} 55. d5 {[%emt 0:00:00]} Be5 {[%emt 0:01:00]} 56. d6 {[%emt 0:01:05]} Re8 {[%emt 0:00:26]} 57. d7 {[%emt 0:03:58]} Rd8 {[%emt 0:00:02]} 58. Rxe5 {[%emt 0:02:50]} fxe5 {[%emt 0:00:35]} 59. c6 {[%emt 0:00:11]} 1-0

[Event "GER-chT Youth Countries 2018"]
[Site "Wurzburg"]
[Date "2018.10.06"]
[Round "6"]
[White "Yankelevich, Michael"]
[Black "Evering, Soeren"]
[Result "1-0"]
[ECO "C58"]
[WhiteElo "1961"]
[BlackElo "1854"]
[Annotator "NA RC"]
[PlyCount "114"]
[EventDate "2018.10.03"]
[EventType "team-tourn"]
[EventCountry "GER"]
[SourceTitle "playchess.com"]
[Source "ChessBase"]
[SourceQuality "1"]
[TimeControl "40/5400+30:1800+30"]

1. e4 {[%emt 0:00:00]} e5 {[%emt 0:00:00]} 2. Nf3 {[%emt 0:00:00]} Nc6 {[%emt 0:00:00]} 3. Bc4 {[%emt 0:00:00]} Nf6 {[%emt 0:00:16]} 4. Ng5 {[%emt 0:00:00]} d5 {[%emt 0:00:40]} 5. exd5 {[%emt 0:00:06]} Na5 {[%emt 0:00:52]} 6. Bb5+ {[%emt 0:00:32]} c6 {[%emt 0:00:36]} 7. dxc6 {[%emt 0:00:20]} bxc6 {[%emt 0:00:48]} 8. Bd3 {[%emt 0:00:22]} Be7 {[%emt 0:13:55] C58: Zweispringerspiel (Klassisches System)} (8... Nd5 9. Nf3 Bd6 10. O-O O-O 11. Re1 f5 12. Nxe5 Qf6 13. Nf3 g5 14. g3 f4 15. Nc3 fxg3 16. hxg3 Nxc3 17. dxc3 {½-½ (52) Kovalev,V (2639)-Demchenko,A (2660) Riadh 2017}) 9. O-O {[%emt 0:01:20]} O-O {[%emt 0:00:56]} 10. Nc3 {[%emt 0:01:40] LiveBook: 8 Games} h6 {[%emt 0:02:41]} 11. Nge4 {[%emt 0:01:52]} Nd5 {[%emt 0:05:33]} 12. Ng3 {[%emt 0:01:56]} f5 {[%emt 0:06:08]} 13. Be2 {[%emt 0:05:36]} Be6 {[%emt 0:07:36]} 14. d3 {[%emt 0:01:18]} Nxc3 $146 {[%emt 0:04:28]} ({Vorgänger:} 14... Rb8 15. Bf3 Qc7 16. Re1 Kh7 17. Bxd5 cxd5 {0-1 (59) Carrasco Fernandez,D (1799)-Quinones Mena,J (1954) Chile 2010}) 15. bxc3 {[%emt 0:00:31]} Qd6 {[%emt 0:16:20]} 16. a4 {[%emt 0:03:19]} Rfd8 {[%emt 0:04:01]} (16... Qc7 $14) 17. Bf3 {[%emt 0:01:24]} Rab8 {[%emt 0:02:31]} 18. Qe2 {[%emt 0:01:44]} Bf6 {[%emt 0:14:43]} 19. Ba3 {[%emt 0:02:01]} Qd7 {[%emt 0:02:26]} (19... c5 $16 {kämpft weiter.}) 20. Nh5 {[%emt 0:01:15]} Qf7 {[%emt 0:03:19]} 21. Bb4 $18 {[%emt 0:02:28]} Nb7 22. Bxc6 a5 23. Ba3 Rdc8 24. Bxb7 Rxb7 25. Nxf6+ Qxf6 26. Bd6 e4 27. Rfe1 Bd5 28. c4 Qxd6 29. cxd5 Qxd5 30. dxe4 Qxe4 31. Qa6 Qc6 32. Qxa5 Qxc2 33. Qd5+ Rf7 34. a5 Qc6 35. Qd3 Qd7 36. Qb3 Qb7 37. Qa2 Kh8 38. a6 Qa7 39. Qe6 Qd7 40. Qb3 Qa7 41. Qa4 Qd7 42. Qb4 Qa7 43. h3 Rb8 44. Qd6 Rb6 45. Re8+ Kh7 46. Qd3 Rff6 47. Qe3 Rf7 48. Ra8 Qxa8 49. Qxb6 Qa7 50. Qxa7 Rxa7 51. Kf1 Kg6 52. Ke2 Kf6 53. Kd3 Ke7 54. Kc4 Kd8 55. Kb5 Kc8 56. Kb6 Kb8 57. Re1 Rc7 1-0

[Event "GER-chT Youth Countries 2018"]
[Site "Wurzburg"]
[Date "2018.10.06"]
[Round "6"]
[White "Hommel, Niclas"]
[Black "Wu, Luka"]
[Result "1-0"]
[ECO "B90"]
[WhiteElo "1915"]
[BlackElo "2001"]
[Annotator "NA RC"]
[PlyCount "71"]
[EventDate "2018.10.03"]
[EventType "team-tourn"]
[EventCountry "GER"]
[SourceTitle "playchess.com"]
[Source "ChessBase"]
[SourceQuality "1"]
[TimeControl "40/5400+30:1800+30"]

{[%evp 19,70,12,43,20,24,30,46,49,41,30,46,-4,47,61,107,16,108,146,287,12,46,43,106,92,97,38,31,34,87,72,75,77,94,76,194,223,259,273,219,271,5698,50,29984,32767,29995,29996,29996,29997,29997,29998,29998,29999,29999]} 1. e4 {[%emt 0:00:00]} c5 {[%emt 0:00:00]} 2. Nf3 {[%emt 0:00:00]} d6 {[%emt 0:00:00]} 3. d4 {[%emt 0:00:00]} cxd4 {[%emt 0:00:00]} 4. Nxd4 {[%emt 0:00:00]} Nf6 {[%emt 0:00:00]} 5. Nc3 {[%emt 0:00:00]} a6 {[%emt 0:00:02]} 6. f3 {[%emt 0:00:00]} e5 {[%emt 0:00:18]} 7. Nb3 {[%emt 0:00:03]} Be7 {[%emt 0:00:21]} 8. Be3 {[%emt 0:00:21]} b5 {[%emt 0:00:52]} 9. Qd2 {[%emt 0:01:42]} Be6 {[%emt 0:00:42]} 10. O-O-O {[%emt 0:03:09]} (10. a4 $5 {[%cal Ra4b5]}) 10... O-O {[%emt 0:00:09]} 11. g4 {[%emt 0:01:21]} b4 {[%emt 0:00:10]} 12. Nd5 {[%emt 0:01:34]} Bxd5 {[%emt 0:00:24]} 13. exd5 {[%emt 0:00:06]} a5 $1 {[%emt 0:00:47]} 14. Kb1 {[%emt 0:02:46]} (14. Nc5 $5) 14... Qc7 {[%emt 0:02:56] LiveBook: 61 Games B90: Sicilian Najdorf: Unusual White 6th moves, 6 Be3 Ng4 and 6 Be3 e5} (14... Nbd7 15. Bb5 Nb6 16. Bc6 Nc4 17. Qe2 Nxe3 18. Qxe3 Ra6 19. f4 a4 20. Nc1 Nd7 21. Nd3 exf4 22. Qxf4 {0-1 (49) Vera Siguenas,D (2526)-Delgado Ramirez,N (2613) Medellin 2017}) 15. h4 {[%emt 0:20:02]} Nfd7 {[%emt 0:07:46]} 16. h5 {[%emt 0:04:12]} Na6 {[%emt 0:01:55]} 17. g5 {[%emt 0:02:04]} (17. Bb5 $16) 17... f5 {[%emt 0:01:12] [#]} (17... a4 $14 18. Nc1 a3) 18. g6 $1 $146 {[%emt 0:03:38]} ({Predecessor:} 18. gxf6 Bxf6 19. Bd3 a4 20. Nc1 a3 21. b3 e4 22. Bxe4 Ndc5 23. Bd4 Nxe4 24. fxe4 {1-0 (43) Triapkin,P (2346)-Gichurkin,S (2225) Uljanovsk 2007}) 18... f4 {[%emt 0:22:46] [#]} (18... a4 $16) 19. gxh7+ $2 {[%emt 0:00:53]} ({White has to play} 19. h6 $1 $18 {[%cal Rh6g7]} fxe3 20. Qh2) 19... Kh8 $1 {[%emt 0:02:07]} 20. Bf2 {[%emt 0:03:56]} Nac5 {[%emt 0:03:33]} (20... a4 $11 {keeps the balance.} 21. Nc1 a3) 21. Nxc5 {[%emt 0:09:15]} Nxc5 {[%emt 0:00:11]} 22. Bxc5 {[%emt 0:21:34]} (22. Bb5 $16) 22... Qxc5 {[%emt 0:01:31]} 23. Bd3 {[%emt 0:00:03]} Rfb8 {[%emt 0:12:21]} 24. Be4 {[%emt 0:05:01]} a4 {[%emt 0:01:49]} 25. Rdg1 {[%emt 0:00:09]} Bf6 {[%emt 0:01:41]} 26. Rg6 {[%emt 0:00:16]} b3 {[%emt 0:01:18]} (26... a3 $14 27. h6 Rb7 28. hxg7+ Bxg7) 27. cxb3 {[%emt 0:02:03]} axb3 {[%emt 0:26:01]} 28. a3 {[%emt 0:00:12]} Ra4 {[%emt 0:02:16]} 29. h6 {[%emt 0:02:30]} Rc4 $2 {[%emt 0:05:23]} (29... Qe3 30. Qe1 Qxe1+ 31. Rxe1 Ra7 32. hxg7+ Bxg7 33. Rxd6 Bf8) 30. hxg7+ {[%emt 0:00:36]} Bxg7 {[%emt 0:00:10]} 31. Rxg7 {[%emt 0:00:31]} Kxg7 {[%emt 0:01:43] [#]} 32. h8=Q+ $1 {[%emt 0:00:06]} Rxh8 {[%emt 0:00:07]} 33. Qg2+ {[%emt 0:00:04]} Kf8 {[%emt 0:02:38]} 34. Rxh8+ {[%emt 0:00:05]} Kf7 {[%emt 0:00:16]} 35. Qg6+ {[%emt 0:00:11]} Ke7 {[%emt 0:00:03]} 36. Qg7# {[%emt 0:00:07]} 1-0

[Event "GER-chT Youth Countries 2018"]
[Site "Wurzburg"]
[Date "2018.10.06"]
[Round "6"]
[White "Ley, Sabrina"]
[Black "Block, Timo"]
[Result "1/2-1/2"]
[ECO "C15"]
[WhiteElo "1902"]
[BlackElo "1777"]
[Annotator "NA RC"]
[PlyCount "48"]
[EventDate "2018.10.03"]
[EventType "team-tourn"]
[EventCountry "GER"]
[SourceTitle "playchess.com"]
[Source "ChessBase"]
[SourceQuality "1"]
[TimeControl "40/5400+30:1800+30"]

{[%evp 9,45,19,24,24,72,18,31,16,27,-2,28,16,31,0,12,-10,29,13,0,25,29,0,39,8,0,-15,0,-42,-45,-49,-18,1,0,-5,32767,32767,47,38]} 1. e4 {[%emt 0:00:00]} e6 {[%emt 0:00:00]} 2. d4 {[%emt 0:00:00]} d5 {[%emt 0:00:00]} 3. Nc3 {[%emt 0:00:00]} Bb4 {[%emt 0:00:18]} 4. Bd3 {[%emt 0:00:00]} c5 {[%emt 0:02:00]} 5. exd5 {[%emt 0:05:37]} exd5 {[%emt 0:01:44]} 6. dxc5 {[%emt 0:22:48]} d4 {[%emt 0:01:15] LiveBook: 7 Partien} 7. Bb5+ {[%emt 0:17:23] C01: French: Exchange Variation} (7. a3 Ba5 8. b4 dxc3 9. bxa5 Qxa5 10. Be3 Nf6 11. Qb1 O-O 12. Ne2 Nd5 13. Qb5 Qc7 14. Bc1 Nd7 15. Bxh7+ Kxh7 {0-1 (44) Getz,N (2276)-Ponkratov,P (2592) Plovdiv 2010}) 7... Nc6 {[%emt 0:05:35]} 8. a3 {[%emt 0:02:04]} Bxc5 {[%emt 0:05:02]} 9. Qe2+ $146 {[%emt 0:05:09]} ({Predecessor:} 9. Ne4 Qa5+ 10. b4 Bxb4+ 11. c3 Bxc3+ 12. Nxc3 dxc3 13. Qa4 Qxa4 14. Bxa4 {0-1 (21) Burbach,B (1318)-Cheon,S (1507) Batumi 2016}) 9... Be7 {[%emt 0:07:24]} 10. Ne4 {[%emt 0:03:37]} Bf5 {[%emt 0:07:57]} 11. Bd2 {[%emt 0:06:32]} Qd5 {[%emt 0:18:01]} 12. f3 {[%emt 0:07:54]} Be6 {[%emt 0:06:07]} 13. Nh3 {[%emt 0:06:34]} a6 {[%emt 0:06:52]} 14. Bd3 {[%emt 0:05:48]} Bxh3 $1 {[%emt 0:09:49]} 15. gxh3 {[%emt 0:00:01]} Ne5 {[%emt 0:00:12]} 16. Bf4 {[%emt 0:05:25]} f5 {[%emt 0:08:42]} 17. Bxe5 {[%emt 0:01:57]} Qxe5 {[%emt 0:00:35]} 18. Ng3 {[%emt 0:00:29]} Qxe2+ {[%emt 0:01:51]} 19. Nxe2 {[%emt 0:01:12]} g6 {[%emt 0:01:40]} 20. Nxd4 {[%emt 0:03:23]} Bf6 {[%emt 0:00:47]} 21. c3 {[%emt 0:00:54]} O-O-O {[%emt 0:03:38]} 22. O-O-O {[%emt 0:02:43]} Ne7 $14 {[%emt 0:01:36]} ({Black should try} 22... Bxd4 $15 23. cxd4 Nf6) 23. Ne6 {[%emt 0:00:47]} Rd6 {[%emt 0:01:44]} 24. Bc4 {[%emt 0:00:44]} Rc6 {[%emt 0:00:30]} 1/2-1/2

[Event "GER-chT Youth Countries 2018"]
[Site "Wurzburg"]
[Date "2018.10.06"]
[Round "6"]
[White "Ratay, Meike"]
[Black "Halas, Julia"]
[Result "1-0"]
[ECO "C05"]
[WhiteElo "1887"]
[BlackElo "1972"]
[Annotator "NA RC"]
[PlyCount "93"]
[EventDate "2018.10.03"]
[EventType "team-tourn"]
[EventCountry "GER"]
[SourceTitle "playchess.com"]
[Source "ChessBase"]
[SourceQuality "1"]
[TimeControl "40/5400+30:1800+30"]

{[%evp 14,87,41,25,45,0,66,43,51,14,36,15,80,55,101,0,17,11,46,25,27,0,15,12,0,0,2,0,22,-18,20,-31,16,6,32767,0,0,-12,0,5,0,15,69,0,6,32767,49,32767,32767,-7,0,0,54,32,59,32767,32767,32767,110,110,32767,118,159,223,249,252,235,32767,32767,234,314,243,355,342,387,429]} 1. e4 {[%emt 0:00:00]} e6 {[%emt 0:00:00]} 2. d4 {[%emt 0:00:00]} d5 {[%emt 0:00:00]} 3. Nd2 {[%emt 0:00:00]} Nf6 {[%emt 0:00:00]} 4. e5 {[%emt 0:00:00]} Nfd7 {[%emt 0:00:00]} 5. c3 {[%emt 0:00:00]} c5 {[%emt 0:00:00]} 6. f4 {[%emt 0:00:00]} Nc6 {[%emt 0:01:55]} 7. Ndf3 {[%emt 0:00:14]} cxd4 {[%emt 0:21:34]} 8. cxd4 {[%emt 0:00:12]} Qb6 {[%emt 0:02:06]} 9. a3 {[%emt 0:03:03]} a5 {[%emt 0:01:24]} 10. b3 {[%emt 0:00:16] C05: Französische Verteidigung (Tarrasch-Variante)} Be7 {[%emt 0:06:56] LiveBook: 20 Games} 11. h4 {[%emt 0:01:13]} Qd8 $146 {[%emt 0:16:59]} ({Vorgänger:} 11... f5 12. h5 O-O 13. Ne2 Ndb8 14. Rg1 Bd7 15. g4 Na6 16. gxf5 exf5 {½-½ (34) Delchev,A (2648)-Iotov,V (2581) Sunny Beach 2009}) 12. g4 {[%emt 0:12:29]} b6 {[%emt 0:08:54]} (12... a4 $11 {remains equal.}) 13. Bd3 {[%emt 0:08:05]} Ba6 {[%emt 0:01:55]} 14. Bb1 {[%emt 0:03:42]} (14. Ne2 $16) 14... a4 {[%emt 0:02:22]} 15. b4 {[%emt 0:01:51]} Bc4 {[%emt 0:00:40]} 16. Be3 {[%emt 0:03:50]} b5 {[%emt 0:04:26]} 17. Ne2 {[%emt 0:09:12]} Nb6 {[%emt 0:02:58]} 18. Ng3 {[%emt 0:09:05]} Bb3 {[%emt 0:03:35]} 19. Qe2 {[%emt 0:01:55]} Nc4 {[%emt 0:00:33]} 20. Kf2 {[%emt 0:00:48]} Qb6 {[%emt 0:07:34]} 21. Bd3 {[%emt 0:04:24]} O-O-O {[%emt 0:08:57]} 22. f5 {[%emt 0:04:39]} Rdf8 {[%emt 0:02:51]} 23. Kg2 {[%emt 0:03:41]} Kb7 {[%emt 0:00:55]} 24. Rhf1 {[%emt 0:04:25]} Bd8 {[%emt 0:01:53]} 25. Nh5 {[%emt 0:04:40]} g6 {[%emt 0:00:44]} 26. Nf4 {[%emt 0:00:59]} gxf5 {[%emt 0:02:04]} 27. gxf5 {[%emt 0:00:18]} Ne7 {[%emt 0:00:21]} (27... Ka8 $11) 28. fxe6 {[%emt 0:03:17]} (28. f6 $14) 28... fxe6 {[%emt 0:00:06]} 29. Ng5 {[%emt 0:00:19]} Nf5 {[%emt 0:00:51]} 30. Bxf5 {[%emt 0:01:29]} exf5 {[%emt 0:00:01]} 31. Nge6 {[%emt 0:09:46]} ({Wrong is} 31. Nxd5 $2 Qc6 $19) 31... Rfg8+ {[%emt 0:00:41]} 32. Kh3 Nxe3 {[%emt 0:00:22]} 33. Qxe3 {[%emt 0:01:47]} Rg4 $1 {[%emt 0:00:35]} 34. Nxd8+ {[%emt 0:02:58]} Qxd8 {[%emt 0:00:00]} 35. Qf2 {[%emt 0:00:59]} Rhg8 {[%emt 0:00:55]} (35... Bc2 $1 $11 {keeps the balance.}) 36. Rg1 {[%emt 0:00:25]} Qc7 {[%emt 0:01:02]} 37. Rac1 {[%emt 0:03:21]} Bc4 {[%emt 0:00:37]} 38. Rxg4 {[%emt 0:01:36]} fxg4+ {[%emt 0:00:01]} 39. Kg3 {[%emt 0:00:10]} Qe7 {[%emt 0:01:33]} 40. Qe3 {[%emt 0:02:05]} Rg7 {[%emt 0:00:58]} 41. Rc2 {[%emt 0:03:11]} Qe8 {[%emt 0:13:17]} 42. Rf2 {[%emt 0:02:00]} h5 {[%emt 0:02:22]} 43. Ng2 {[%emt 0:03:33]} Qg6 {[%emt 0:04:28]} 44. Rf6 $18 {[%emt 0:06:51]} Qh7 {[%emt 0:04:58]} 45. Qh6 {[%emt 0:08:25]} Qd3+ {[%emt 0:03:41]} 46. Ne3 {[%emt 0:01:55]} Rd7 {[%emt 0:00:40]} 47. Rb6+ {[%emt 0:00:31]} 1-0

[Event "GER-chT Youth Countries 2018"]
[Site "Wurzburg"]
[Date "2018.10.06"]
[Round "6"]
[White "Riegel, Arinna"]
[Black "Schnabel, Luise"]
[Result "1/2-1/2"]
[ECO "A05"]
[WhiteElo "1881"]
[BlackElo "1753"]
[Annotator "NA RC"]
[PlyCount "57"]
[EventDate "2018.10.03"]
[EventType "team-tourn"]
[EventCountry "GER"]
[SourceTitle "playchess.com"]
[Source "ChessBase"]
[SourceQuality "1"]
[TimeControl "40/5400+30:1800+30"]

{[%evp 14,52,30,36,68,37,61,65,63,69,86,72,63,50,74,56,63,68,71,54,68,52,62,0,-4,-7,0,-9,-14,-19,-9,-48,-31,-46,32767,32767,0,-27,-58,-40,-15]} 1. Nf3 {[%emt 0:00:00]} Nf6 {[%emt 0:00:00]} 2. g3 {[%emt 0:00:00]} e6 {[%emt 0:00:01]} 3. Bg2 {[%emt 0:00:00]} Be7 {[%emt 0:00:21]} 4. O-O {[%emt 0:00:23]} d5 {[%emt 0:00:19]} 5. d4 {[%emt 0:00:05]} O-O {[%emt 0:00:09]} 6. c4 {[%emt 0:01:17]} c6 {[%emt 0:00:32]} 7. Qc2 {[%emt 0:02:56]} Na6 {[%emt 0:05:14]} 8. a3 {[%emt 0:01:25] LiveBook: 7 Games E06: Closed Catalan: Early deviations} Ne4 {[%emt 0:04:49]} 9. Bf4 $146 {[%emt 0:07:47]} ({Predecessor:} 9. b4 Nc7 10. Nc3 Nxc3 11. Qxc3 a5 12. bxa5 {½-½ (52) Wells,P (2489)-Radulski,J (2556) Penarth 2011}) 9... Nc7 {[%emt 0:04:49]} 10. Nc3 {[%emt 0:09:08]} Nxc3 {[%emt 0:02:57]} 11. Qxc3 {[%emt 0:00:11]} Bf6 {[%emt 0:03:06]} 12. Be5 {[%emt 0:05:30]} Ne8 {[%emt 0:14:35]} 13. Rac1 {[%emt 0:17:55]} Nd6 {[%emt 0:05:27]} 14. Bxf6 {[%emt 0:12:38]} Qxf6 {[%emt 0:00:24]} 15. c5 {[%emt 0:00:07]} Ne4 {[%emt 0:13:05]} 16. Qd3 {[%emt 0:04:47]} Qe7 {[%emt 0:02:54]} 17. Ne5 {[%emt 0:05:44]} f6 {[%emt 0:04:15]} 18. Nf3 {[%emt 0:04:14]} (18. Nc4 $1 $14) 18... e5 {[%emt 0:03:35]} 19. b4 {[%emt 0:04:52]} g5 {[%emt 0:13:24]} 20. e3 {[%emt 0:08:52]} Bf5 {[%emt 0:04:43]} 21. Qe2 {[%emt 0:02:52]} Rae8 {[%emt 0:03:41]} 22. dxe5 {[%emt 0:02:03]} fxe5 {[%emt 0:00:29]} 23. Nd2 {[%emt 0:00:18]} Nxd2 {[%emt 0:04:48]} 24. Qxd2 {[%emt 0:00:01]} Bg6 {[%emt 0:01:25]} 25. Rcd1 {[%emt 0:03:35]} Rf7 {[%emt 0:04:31]} 26. Qa2 $15 {[%emt 0:02:46]} Kh8 {[%emt 0:01:03]} 27. Qb2 {[%emt 0:00:57]} Kg8 {[%emt 0:00:55]} 28. Qa2 {[%emt 0:00:09]} Kh8 {[%emt 0:01:38]} 29. Qb2 {[%emt 0:00:07]} 1/2-1/2

[Event "GER-chT Youth Countries 2018"]
[Site "Wurzburg"]
[Date "2018.10.06"]
[Round "6"]
[White "Bui, Ngoc Han Julia"]
[Black "Zeuner, Ole"]
[Result "0-1"]
[ECO "C74"]
[WhiteElo "1876"]
[BlackElo "1865"]
[Annotator "NA RC"]
[PlyCount "44"]
[EventDate "2018.10.03"]
[EventType "team-tourn"]
[EventCountry "GER"]
[SourceTitle "playchess.com"]
[Source "ChessBase"]
[SourceQuality "1"]
[TimeControl "40/5400+30:1800+30"]

{[%evp 10,44,50,52,58,-9,15,-10,8,-10,-12,-59,-67,-101,-60,-125,32767,-149,-225,-404,-344,-332,-321,-733,-643,-478,-412,-686,-592,-853,-991,-1223,-1572,-2388,-1845,-2020,-2533]} 1. e4 {[%emt 0:00:00]} e5 {[%emt 0:00:00]} 2. Nf3 {[%emt 0:00:00]} Nc6 {[%emt 0:00:00]} 3. Bb5 {[%emt 0:00:00]} a6 {[%emt 0:00:00]} 4. Ba4 {[%emt 0:00:00]} d6 {[%emt 0:00:11]} 5. c3 {[%emt 0:05:05]} f5 {[%emt 0:01:02]} 6. exf5 {[%emt 0:02:17]} Bxf5 {[%emt 0:00:09] LiveBook: 266 Games} 7. d3 {[%emt 0:02:16] C74: Ruy Lopez: Deferred Steinitz: 5 c3 f5} (7. O-O $16) (7. d4 e4 8. Nfd2 Nf6 9. Nf1 Be7 10. Bg5 O-O 11. Ne3 Bg6 12. Nd2 Kh8 13. O-O b5 14. Bb3 Na5 15. Be6 c6 16. Bxf6 Rxf6 {0-1 (49) Malakhov,V (2686)-Fressinet,L (2662) Riadh 2017}) 7... Be7 {[%emt 0:01:57]} 8. O-O {[%emt 0:03:50]} Nf6 {[%emt 0:01:26]} 9. Re1 {[%emt 0:01:53]} O-O $1 {[%emt 0:02:58]} 10. Bb3+ {[%emt 0:05:28]} Kh8 {[%emt 0:00:54]} 11. d4 $146 {[%emt 0:06:17]} ({Predecessor:} 11. Ng5 d5 12. Qf3 Ng4 13. Nh3 Bh4 14. Rf1 e4 15. dxe4 {0-1 (36) Bedalli,E-Gjergji,R (1938) Durres 2013}) 11... e4 {[%emt 0:15:05]} 12. Ng5 {[%emt 0:14:10]} d5 {[%emt 0:00:55]} 13. f3 {[%emt 0:01:41]} h6 {[%emt 0:08:49]} 14. g4 $2 {[%emt 0:10:52]} (14. fxe4 $17 Bg4 15. Qd2) 14... Bd7 {[%emt 0:06:49]} ({Inferior is} 14... hxg5 15. gxf5 exf3 16. Qxf3 $11) 15. Nh3 {[%emt 0:04:29]} exf3 {[%emt 0:04:09]} 16. Nf4 $2 {[%emt 0:03:09]} (16. Qxf3 Bxg4 17. Qg2) 16... Bxg4 {[%emt 0:06:21]} 17. Qc2 {[%emt 0:03:18] [#]} Bf5 $1 {[%emt 0:14:28]} 18. Qf2 $2 {[%emt 0:10:28]} (18. Qxf5 f2+ 19. Kf1 fxe1=R+ 20. Kxe1) 18... g5 {[%emt 0:07:06]} 19. Qxf3 {[%emt 0:03:48]} gxf4 {[%emt 0:01:42]} 20. Qxf4 {[%emt 0:00:04]} Ng4 {[%emt 0:01:41]} 21. h3 {[%emt 0:00:18]} Bg5 {[%emt 0:00:55]} 22. Qg3 {[%emt 0:01:54]} Bh4 $19 {[%emt 0:00:59]} 0-1